Cogmind - Beta 14 @@@ ROGUE MODE // 2024.10.01 @ 22:02:44 Player: Mallow Result: Destroyed by ES-USY(R) with Subdweller Machine Gun Performance ------------- Evolutions (0) 0 Regions Visited (3) 600 Robots Destroyed (26) 130 Value Destroyed (766) 766 Prototype IDs (6) 120 Alien Tech Used (0) 0 Bonus (-99) -99 TOTAL SCORE: 1517 Bonus ------- Follower Combat Kills 30 Friendly Fire -129 Cogmind --------- Core Integrity 0/250 Matter 290/300 Energy 200/200 System Corruption 0% Temperature Cool (0) Movement Treading (240) Ox1 Location -10/Subcaves Parts ------- > --- POWER (1) -------- Subdweller Power Source > --- PROPULSION (2) --- Improved Treads Improved Aluminum Leg > --- UTILITY (2) ------ Medium Storage Unit Light Armor Plating > --- WEAPON (2) ------- Battle Cannon Makeshift Hammer > --- INVENTORY (10) --- Light Ion Engine Subdweller Power Source Improved Aluminum Leg Improved Aluminum Leg Improved Aluminum Leg Medium Storage Unit Terrain Scan Processor Makeshift System Shield Light Assault Rifle Peak State ------------ > --- POWER ------------ Subdweller Power Source > --- PROPULSION ------- Improved Treads Improved Aluminum Leg > --- UTILITY ---------- Medium Storage Unit Light Armor Plating > --- WEAPON ----------- Battle Cannon Makeshift Hammer > --- INVENTORY -------- Light Ion Engine Subdweller Power Source Improved Aluminum Leg Improved Aluminum Leg Improved Aluminum Leg Medium Storage Unit Terrain Scan Processor Makeshift System Shield Light Assault Rifle [Rating: 15] Favorites ----------- Power Light Ion Engine Engine Light Ion Engine Power Core Light Nuclear Core Propulsion Improved Treads Treads Improved Treads Leg Improved Aluminum Leg Utility Medium Storage Unit Storage Medium Storage Unit Processor Visual Processing Unit Protection Light Armor Plating Weapon Light Assault Rifle Energy Gun Medium Laser Ballistic Gun Light Assault Rifle Ballistic Cannon Battle Cannon Launcher Grenade Launcher Impact Weapon Makeshift Hammer Build | -11 -10 -10 -10 ------- Run | Yrd Mat Min Sub Slots Evolved . | . . . . Power . | . . . . Propulsion . | . . . . Utility . | . . . . Weapon . | . . . . Parts Attached 25 | 6 9 1 9 Power 6 | 1 2 1 2 Engine 5 | 1 1 1 2 Core 1 | . 1 . . Reactor . | . . . . Propulsion 7 | 2 4 . 1 Treads 6 | 2 4 . . Leg 1 | . . . 1 Wheel . | . . . . Hover . | . . . . Flight . | . . . . Utility 5 | 1 2 . 2 Device . | . . . . Storage 2 | 1 1 . . Processor 1 | . 1 . . Hackware . | . . . . Protection 2 | . . . 2 Artifact . | . . . . Weapon 7 | 2 1 . 4 Energy Gun 1 | 1 . . . Energy Cannon . | . . . . Ballistic Gun 3 | 1 . . 2 Ballistic Cannon 1 | . . . 1 Launcher 1 | . 1 . . Special Weapon . | . . . . Impact Weapon 1 | . . . 1 Slashing Weapon . | . . . . Piercing Weapon . | . . . . Special Melee Weapon . | . . . . Unidentified Prototypes . | . . . . Parts Lost 7 | . 2 1 4 Power 2 | . 1 1 . Propulsion 2 | . 1 . 1 Utility 1 | . . . 1 Weapon 2 | . . . 2 Highest Loss Streak 2 | . 1 1 2 To Critical Strikes . | . . . . Average Slot Usage (%) 97 | . 94 99 98 Engine 12 | . 10 13 14 Core 1 | . 3 . . Treads 27 | . 27 28 26 Storage 14 | . 14 14 14 Processor 8 | . 9 14 5 Protection 4 | . . . 8 Energy Gun 3 | . 12 . . Ballistic Gun 14 | . 14 14 14 Ballistic Cannon 3 | . . . 6 Launcher 6 | . 1 14 5 Peak Build Rating 15 | 6 13 13 15 Average Rating 11 | 4 9 11 12 On Entrance 7 | . 6 13 11 Naked Turns . | . . . . Heaviest Build 25 | 11 19 17 25 Greatest Support 46 | 40 46 46 46 Greatest Overweight (x) 1 | 1 . . 1 Average Overweight (x) . | . . . . Largest Inventory Capacity 10 | 8 10 10 10 Average Capacity 9 | 7 8 10 10 Most Carried 10 | 1 10 9 10 Average Carried 7 | . 6 8 8 Final Capacity 10 | 8 10 10 10 Final Carried 9 | 1 9 8 9 Class Distribution -------------------- 100% | Mutant Dominant Class ---------------- Mutant | -10/Materials Mutant | -10/Mines Mutant | -10/Subcaves Resources | -11 -10 -10 -10 ----------- Run | Yrd Mat Min Sub Matter Collected 897 | 215 130 49 503 Remotely . | . . . . Salvage Created 627 | . 416 31 180 Parts 24 | . 17 . 7 Haulers Intercepted 2 | . 2 . . Recyclers Shooed 1 | . 1 . . Parts Field Recycled . | . . . . Retrieved Matter . | . . . . Parts Self-Destructed . | . . . . Prevented . | . . . . Kills | -11 -10 -10 -10 ------- Run | Yrd Mat Min Sub Combat Hostiles Destroyed 21 | . 10 2 9 Guns 11 | . 8 . 3 Cannons 2 | . . . 2 AOE 8 | . 2 2 4 Classes Destroyed 8 | . 5 . 3 Worker 2 | . 2 . . Tunneler 1 | . 1 . . Hauler 2 | . 2 . . Swarmer 4 | . 3 . 1 Grunt 9 | . 7 2 . Sentry 1 | . . . 1 Artisan 1 | . . . 1 Subdweller 7 | . . . 7 Best Kill Streak 5 | . 5 2 3 Combat Bots Only 4 | . 4 2 3 Max Kills in Single Turn 3 | . 3 1 1 Gunslinging . | . . . . Exploded 2 | . 2 1 1 Melee . | . . . . Uniques/NPCs Destroyed . | . . . . Combat | -11 -10 -10 -10 -------- Run | Yrd Mat Min Sub Hostile Shots Fired 141 | . 71 8 62 Missed 44 | . 18 2 24 Damage Taken 1580 | . 669 69 842 Core 252 | . 73 23 156 Absorbed by Shields . | . . . . Core Remaining (%) 100 | 100 . . . Volleys Fired 102 | . 45 6 51 Largest 2 | . 2 2 2 Hottest 70 | . 70 50 69 Shots Fired 169 | . 90 12 67 Gun 119 | . 85 6 28 Cannon 21 | . . . 21 Launcher 29 | . 5 6 18 Special . | . . . . Kinetic 100 | . 45 6 49 Thermal 40 | . 40 . . Explosive 29 | . 5 6 18 Electromagnetic . | . . . . Robot Hit Streak 11 | . 9 6 11 Robot Miss Streak 4 | . 4 1 2 Penetration Max . | . . . . Secondary Targets 1 | . 1 . . Max Gunslinging Chain 1 | . 1 . . Shots Hit Robots 107 | . 53 9 45 Core Hits 56 | 1 28 5 22 Critical Kills . | . . . . Critical Parts Destroyed 2 | . 2 . . Critical Strikes 5 | . 5 . . Burn 3 | . 3 . . Destroy 2 | . 2 . . Melee Attacks . | . . . . Impact . | . . . . Slashing . | . . . . Piercing . | . . . . Sneak Attacks . | . . . . Combat Hostiles . | . . . . Follow-up Attacks . | . . . . Damage Inflicted 2925 | 2 1134 279 1510 Guns 901 | . 537 30 334 Cannons 290 | . . . 290 Explosions 1732 | . 597 249 886 Melee . | . . . . Ramming 2 | 2 . . . Kinetic 881 | . 227 30 624 Thermal 310 | . 310 . . Explosive 1732 | . 597 249 886 Electromagnetic . | . . . . Impact . | . . . . Slashing . | . . . . Piercing . | . . . . Highest Corruption . | . . . . Average Corruption . | . . . . Corruption Purged . | . . . . Corruption Blocked . | . . . . Overload Shots . | . . . . Overflow Damage 14 | . . . 14 Projectiles . | . . . . Explosions 14 | . . . 14 Melee . | . . . . Knockbacks . | . . . . Impact . | . . . . Kinetic . | . . . . Secondary . | . . . . Self-Inflicted Damage 141 | . 80 . 61 Shots 6 | . 2 . 4 Rammed 1 | 1 . . . Targets Rammed 1 | 1 . . . Kicked . | . . . . Crushed . | . . . . Highest Temperature 205 | . 205 22 15 Average Temperature 82 | . 88 8 15 Received Heat Transfer 411 | . 198 36 177 Siege Activations . | . . . . Robots Corrupted . | . . . . Combat Hostiles . | . . . . Parts Fried . | . . . . Impact Corruptions . | . . . . Robots Melted . | . . . . Combat Hostiles . | . . . . Parts Melted 2 | . 2 . . Heat Transferred 1147 | . 1147 . . Parts Sabotaged . | . . . . Parts Stolen . | . . . . Parts Stripped . | . . . . Power Chain Reactions . | . . . . Alert | -11 -10 -10 -10 ------- Run | Yrd Mat Min Sub Peak Influence 234 | . 234 116 . Initial 33 | . . 33 . Average 94 | . 115 78 . Maximum Alert Level 1 | . 1 . . Low Security (%) 87 | 100 77 100 . Level 1 12 | . 22 . . Level 2 . | . . . . Level 3 . | . . . . Level 4 . | . . . . Level 5 . | . . . . High Security . | . . . . Max Security . | . . . . Squads Dispatched . | . . . . Investigation . | . . . . Extermination . | . . . . Reinforcement . | . . . . Assault . | . . . . Garrison . | . . . . Intercept . | . . . . Searches Triggered . | . . . . Construction Impeded . | . . . . Haulers Reinforced . | . . . . Active Scanning Responses . | . . . . Cargo Convoy Interrupts . | . . . . Stealth | -11 -10 -10 -10 --------- Run | Yrd Mat Min Sub Distress Signals 1 | . 1 . . Communications Jammed . | . . . . Distress Signals . | . . . . Times Spotted 37 | . 22 2 13 Peak Tracking Total 5 | . 5 1 2 Tactical Retreats 1 | . . . 1 Traps | -11 -10 -10 -10 ------- Run | Yrd Mat Min Sub Traps Triggered 1 | . 1 . . Indirectly . | . . . . Trap Hack Attempts . | . . . . Triggered . | . . . . Disarmed 3 | . 3 . . Reprogrammed . | . . . . Reused . | . . . . Traps Extracted . | . . . . Installed . | . . . . Triggered . | . . . . Machines | -11 -10 -10 -10 ---------- Run | Yrd Mat Min Sub Machines Disabled 3 | . 2 1 . Max in Single Turn 1 | . 1 1 . Machines Repaired . | . . . . Machines Dismantled . | . . . . Machines Sabotaged . | . . . . Overloaded Fab Kills . | . . . . Hacking | -11 -10 -10 -10 --------- Run | Yrd Mat Min Sub Machines Accessed 6 | . 6 . . Terminals 5 | . 5 . . Fabricators . | . . . . Repair Stations . | . . . . Recycling Units 1 | . 1 . . Scanalyzers . | . . . . Garrison Access . | . . . . Total Hacks 18 | . 18 . . Successful 10 | . 10 . . Failed 8 | . 8 . . Catastrophic 1 | . 1 . . Database Lockouts . | . . . . Manual . | . . . . Terminals 17 | . 17 . . Fabricators . | . . . . Repair Stations . | . . . . Recycling Units 1 | . 1 . . Scanalyzers . | . . . . Garrison Access . | . . . . Terminal Hacks 10 | . 10 . . Record 1 | . 1 . . Robot Analysis 1 | . 1 . . Prototype ID Bank 4 | . 4 . . Branch Access Points 1 | . 1 . . Locate Traps 2 | . 2 . . Disarm Traps 1 | . 1 . . Fabricator Hacks . | . . . . Repair Station Hacks . | . . . . Recycling Unit Hacks . | . . . . Scanalyzer . | . . . . Garrison Access Hacks . | . . . . Unauthorized Hacks . | . . . . Terminals . | . . . . Fabricators . | . . . . Repair Stations . | . . . . Recycling Units . | . . . . Scanalyzers . | . . . . Garrison Access . | . . . . Data Cores Recovered . | . . . . Used . | . . . . Hacking Detections 5 | . 5 . . Full Trace Events 3 | . 3 . . Feedback Events . | . . . . Feedback Blocked . | . . . . Robot Schematics Acquired . | . . . . Robots Built . | . . . . Authchips . | . . . . Time . | . . . . Total Robot Build Rating . | . . . . Part Schematics Acquired . | . . . . Parts Built . | . . . . Authchips . | . . . . Time . | . . . . Total Part Build Rating . | . . . . Parts Repaired . | . . . . Time . | . . . . Parts Recycled . | . . . . Recycled Matter . | . . . . Retrieved Matter . | . . . . Retrieved Components . | . . . . Parts Scanalyzed . | . . . . Part Schematics Acquired . | . . . . Parts Damaged . | . . . . Bothacking | -11 -10 -10 -10 ------------ Run | Yrd Mat Min Sub Used RIF Installer . | . . . . Robots Hacked . | . . . . Non-combat . | . . . . Combat . | . . . . Robot Hacks Applied . | . . . . Relay Couplers Released . | . . . . Fabnet Peak Effective % . | . . . . Robots Rewired . | . . . . Allies Hacked . | . . . . Hacks Repelled . | . . . . Allies | -11 -10 -10 -10 -------- Run | Yrd Mat Min Sub Total Allies 2 | . . 2 . Largest Group 2 | . . 2 2 Highest-Rated Group 46 | . . 42 46 Highest-Rated Ally 31 | . . 31 31 Total Orders . | . . . . Ally Attacks 6 | . . . 6 Total Damage 126 | . . . 126 Kills 1 | . . . 1 Allies Corrupted . | . . . . Allies Melted . | . . . . Intel | -11 -10 -10 -10 ------- Run | Yrd Mat Min Sub Robot Analysis Total 1 | . 1 . . Derelict Logs Recovered 2 | . . 1 1 Drone Launches . | . . . . Drone Recoveries . | . . . . Exploration | -11 -10 -10 -10 ------------- Run | Yrd Mat Min Sub Turns Passed 2967 | 107 890 582 1388 Spaces Moved 1463 | 62 454 173 774 Core 4 | 4 . . . Treads 1459 | 58 454 173 774 Legs . | . . . . Wheels . | . . . . Hover . | . . . . Flight . | . . . . Fastest Speed 50 | 50 160 160 160 Average Speed 160 | 155 160 160 160 Slowest Speed 240 | 160 160 160 240 Overloaded Moves . | . . . . Propulsion Burnouts . | . . . . Robots Hopped . | . . . . Cave-ins Triggered . | . . . . Exploration Rate (%) 43 | 5 73 50 47 Regions Visited 3 Branch Regions 2 Pre-discovered Areas 2 | . . 1 1 Known Exits Taken 1 | . 1 . . Unknown Exits Taken 2 | 1 . 1 . Scrap Searched 4 | . . 1 3 Spaces Dug . | . . . . Terrain Destroyed 162 | . 55 32 75 Melee . | . . . . Projectile 1 | . . . 1 AOE 161 | . 55 32 74 Terrain Rammed . | . . . . Walls Destroyed . | . . . . Machines Disabled . | . . . . Actions | -11 -10 -10 -10 --------- Run | Yrd Mat Min Sub Total 1924 | 69 536 468 851 Wait 315 | . 11 289 15 Move 1461 | 62 453 172 774 Hop . | . . . . Pick Up 14 | 1 12 . 1 Fast Attach 11 | 6 3 . 2 Attach 5 | . 1 1 3 Detach 1 | . . . 1 Swap 9 | . 5 . 4 Drop 6 | . 6 . . Fire 102 | . 45 6 51 Melee . | . . . . Ram . | . . . . Kick . | . . . . Crush . | . . . . Escape Stasis . | . . . . Rewire . | . . . . Trap . | . . . . Miscellaneous . | . . . . Route ------- -11/Scrapyard -10/Materials (discovered 2 exits: [*Mat] / *Min) -10/Mines (discovered 2 exits: [*Mat] / [*Sub]) -10/Subcaves History --------- Turn | Location | Event 13 | -11/Scrapyard | Discovered new exit (range 13) 108 | -11/Scrapyard | Entered Materials 318 | -10/Materials | Build established: Mutant 589 | -10/Materials | Discovered new exit (range 17) 893 | -10/Materials | Identified exit to Mines 998 | -10/Materials | Entered Mines 1245 | -10/Mines | Discovered new exit (range 10) 1275 | -10/Mines | Learned location of Storage (-7) 1523 | -10/Mines | Discovered new exit (range 8) 1580 | -10/Mines | Entered Subcaves 1580 | -10/Subcaves | Accompanied by 2 allies 1585 | -10/Subcaves | Led the pair of lost Derelicts to an unsafe place 1665 | -10/Subcaves | Ambushed by angry Subdweller bent on revenge 2086 | -10/Subcaves | Core integrity fell below 50% 2228 | -10/Subcaves | A swath of the cavern ceiling suddenly collapsed 2311 | -10/Subcaves | Shifting Twisted Machinery released Battle Cannon 2432 | -10/Subcaves | Shifting Twisted Machinery released Sub. Optics 2547 | -10/Subcaves | Core integrity fell below 20% 2762 | -10/Subcaves | Curiously followed by a Cobbler waking with a query about "LVR3C" 2820 | -10/Subcaves | Learned location of Zion (-7) 2930 | -10/Subcaves | Shifting Twisted Machinery released Mak. Hammer 2932 | -10/Subcaves | Shifting Twisted Machinery released Sub. Beam Cannon 2968 | -10/Subcaves | Destroyed by ES-USY(R) with Subdweller Machine Gun Last Messages --------------- AO-85Y(O) collects matter. WR-QJW(z): "She is not going to be happy we haven't found any suitable candidates yet." AO-85Y(O) collects matter. Acquired derelict log, extracted data. World map updated: -7/Zion. AO-85Y(O) collects matter. AO-85Y(O) puts together Ripper. Sub. Machine Gun destroyed. TN-PX0(R) destroyed. Imp. Treads destroyed. XO-NO9(R) destroyed. Acquired 40 matter. Subatomizers dissect the Sub. Power Source. AO-85Y(O) collects matter. Mak. Hammer falls loose from the Twisted Machinery. Sub. Beam Cannon falls loose from the Twisted Machinery. Acquired Mak. Hammer. Map ----- +----------------------------------------------------+ | ?????????????????????# ####???? | | ?????????????????????## # ##??? | | ??????????????????????# ?## #??? | | ??????????????????????## ??## ###??? | | ???????????????????????????# ##????? | | ???????????????????????????# ##?????? | | ???????????????????????????## #??????? | | ????????????????????????????# #??????? | | ????????????????????????????## ####???? | | ?????????????????????????????### #???? | | ???????????????????????????????## #???? | | ??????????????????#?????????????## #???? | | ?????????????????# ??????????????# #???? | | ????????????????# ??????###????## #???? | | ???????????????## ?????# ##### #???? | | ????????????????" "?????# #???? | | ???????????????## "#??????# #???? | | ???????????????# ""##?????# #???? | | ???????????????# "] ##????#" #???? | | ???????????????# "" ########## ####???? | | ???????????????# " ##### ##??????? | | ???????????????# " ## #???????? | | ???????????????# ##???????? | | ??????????????##RR### #####????? | | ??????????????# #?## #????? | | ??????????????## @##?# #????? | | ???????????????# ## ### ##????? | | ???????????????# #?? ##?????? | | ???????????????# #?""??????? | | ???????????????# ""?" ?????? | | ???????????????# ## "" "????? | | ??????????????# ### #### # #"???? | | ??????????????# #?## #???###?#????? | | ??????????????## ??# #????????????? | | ???????????????# ?# ????????????? | | ???????????????## ???????????? | | ????????????????## ???????????? | | ????????????????? ### ???????????? | | ?????????????????? #??# ???????????? | | ?????????????????? ##???# ???????????? | | ?????????????????? ?????????????????? | | ?????????????????? # ???????????????????? | | ?????????????????? ??????????????????????? | | ?????????????????????????????????????????? | | ?????????????????????????????????????????? | | ?????????????????????????????????????????? | | ?????????????????????????????????????????? | | ?????????????????????????????????????????? | | ?????????????????????????????????????????? | | ?????????????????????????????????????????? | +----------------------------------------------------+ Best States ------------- Heat Dissipation 25 Energy Generation 15 Energy Capacity 200 Matter Stores 300 Matter Capacity 300 Sight Range 18 Terrain Scan Density 10 Armor Coverage 150 Evasion (%) 40 Recoil Reduction 2 Item Schematics ----------------- None Robot Schematics ------------------ None Fabricated ------------ Nothing Alien Tech Used ----------------- None Achievements -------------- None Challenges ------------ None Game ------ Seed MultinovaMappingBooster Manual? 0 Play Time 00:15:48 Cumulative 40.4 hours Start 2024.10.01 @ 21:42:17 End 2024.10.01 @ 22:02:44 Sessions 1 Manual Loads 0 Difficulty Rogue Special Mode None Game No. 68 Rogue 68 Adventurer 0 Explorer 0 Win Type - Total 1 Types 1/0/0/0/0/0/0/0/0 Lore% 15 Gallery% 36 Achievement% 27 Wizard Run 0 Options --------- Layout 1 ASCII 0 Keyboard 0 Movement Arrows Keybinds 0 Fullscreen 2 Font 24/Smallcaps Map View 50x35 Zoom Use 29% Tactical HUD 0 Map Filters NONE Filters NONE Steam 1 RUN: 7fdc2030-288d-42d8-8691-fc1261dc6287